[Event "*** Titled Tuesday Blitz"]
[Site "Chess.com"]
[Date "2020.04.14"]
[Round "4"]
[White "jefferyx"]
[Black "Shahinyan_ChessMood"]
[Result "1-0"]
[WhiteElo "2881"]
[BlackElo "2673"]
[TimeControl "180+1"]
[EndTime "10:41:04 PDT"]
[Termination "jefferyx won by resignation"]

1. d4 {[%clk 0:03:00.9]} 1... e6 {[%clk 0:02:59.9]} 2. e4 {[%clk 0:03:00.3]}
2... d5 {[%clk 0:02:59.3]} 3. exd5 {[%clk 0:03:01.2]} 3... exd5 {[%clk
0:02:59.5]} 4. Nf3 {[%clk 0:03:02.1]} 4... Nf6 {[%clk 0:02:59.7]} 5. Bd3 {[%clk
0:03:01.6]} 5... Bd6 {[%clk 0:03:00.1]} 6. Qe2+ {[%clk 0:03:02.2]} 6... Qe7
{[%clk 0:02:58.3]} 7. Qxe7+ {[%clk 0:03:01.9]} 7... Bxe7 {[%clk 0:02:58]} 8. Bf4
{[%clk 0:03:01.6]} 8... c6 {[%clk 0:02:58.3]} 9. O-O {[%clk 0:03:01]} 9... O-O
{[%clk 0:02:58.8]} 10. Nbd2 {[%clk 0:02:58.4]} 10... Bg4 {[%clk 0:02:36.3]} 11.
Rfe1 {[%clk 0:02:57.5]} 11... Re8 {[%clk 0:02:33.6]} 12. Ne5 {[%clk 0:02:53.8]}
12... Nbd7 {[%clk 0:02:27.9]} 13. Nxg4 {[%clk 0:02:42.7]} 13... Nxg4 {[%clk
0:02:28.8]} 14. Nb3 {[%clk 0:02:42]} 14... a5 {[%clk 0:01:45]} 15. a4 {[%clk
0:02:41.7]} 15... Ngf6 {[%clk 0:01:34.4]} 16. c3 {[%clk 0:02:37.1]} 16... b6
{[%clk 0:01:28.1]} 17. Re2 {[%clk 0:02:33.5]} 17... Bf8 {[%clk 0:01:16.1]} 18.
Rae1 {[%clk 0:02:32.9]} 18... Rxe2 {[%clk 0:01:12]} 19. Rxe2 {[%clk 0:02:33.8]}
19... g6 {[%clk 0:01:12.2]} 20. h3 {[%clk 0:02:17.4]} 20... Re8 {[%clk
0:00:55.7]} 21. Kf1 {[%clk 0:02:08.2]} 21... Rxe2 {[%clk 0:00:53.6]} 22. Kxe2
{[%clk 0:02:09.1]} 22... Ne8 {[%clk 0:00:54.5]} 23. Na1 {[%clk 0:02:02.2]} 23...
Bd6 {[%clk 0:00:53.1]} 24. Bd2 {[%clk 0:02:02.9]} 24... f5 {[%clk 0:00:47.7]}
25. b4 {[%clk 0:02:02.3]} 25... Bc7 {[%clk 0:00:38.8]} 26. Nb3 {[%clk
0:01:57.2]} 26... Nd6 {[%clk 0:00:36.1]} 27. Bf4 {[%clk 0:01:56.7]} 27... axb4
{[%clk 0:00:27.1]} 28. cxb4 {[%clk 0:01:57.6]} 28... Ne8 {[%clk 0:00:24.1]} 29.
Bd2 {[%clk 0:01:43.6]} 29... Kf7 {[%clk 0:00:23.9]} 30. g4 {[%clk 0:01:34.6]}
30... fxg4 {[%clk 0:00:21.6]} 31. hxg4 {[%clk 0:01:35.5]} 31... Nd6 {[%clk
0:00:18]} 32. Bf4 {[%clk 0:01:30.5]} 32... Ke6 {[%clk 0:00:15.5]} 33. a5 {[%clk
0:01:26.9]} 33... b5 {[%clk 0:00:14.8]} 34. a6 {[%clk 0:01:09]} 34... Ne8 {[%clk
0:00:14.6]} 35. a7 {[%clk 0:01:08.2]} 35... Nb6 {[%clk 0:00:15.1]} 36. Bg5
{[%clk 0:01:00.5]} 36... Nd6 {[%clk 0:00:09.7]} 37. Nc5+ {[%clk 0:00:59.8]}
37... Kf7 {[%clk 0:00:10.1]} 38. Na6 {[%clk 0:00:58.9]} 38... Ne8 {[%clk
0:00:07.6]} 39. Nb8 {[%clk 0:00:58.1]} 39... Na8 {[%clk 0:00:07.2]} 40. Nxc6
{[%clk 0:00:58]} 40... Ke6 {[%clk 0:00:07.3]} 41. Bxb5 {[%clk 0:00:57.6]} 41...
Nd6 {[%clk 0:00:07.4]} 42. Ba4 {[%clk 0:00:48.9]} 42... Bb6 {[%clk 0:00:06.7]}
43. Bb3 {[%clk 0:00:45.7]} 43... Ne4 {[%clk 0:00:06]} 44. Be3 {[%clk 0:00:44.4]}
44... Kd6 {[%clk 0:00:05.6]} 45. Ne5 {[%clk 0:00:16.3]} 45... Bxa7 {[%clk
0:00:05.9]} 46. Bf4 {[%clk 0:00:15.5]} 46... Ke6 {[%clk 0:00:06.3]} 47. Nf3
{[%clk 0:00:11.7]} 47... Nb6 {[%clk 0:00:04.2]} 48. Ng5+ {[%clk 0:00:09.8]}
48... Nxg5 {[%clk 0:00:03.4]} 49. Bxg5 {[%clk 0:00:10.7]} 49... Nc4 {[%clk
0:00:04.1]} 50. Kd3 {[%clk 0:00:10.8]} 50... Nd6 {[%clk 0:00:04]} 51. Be3 {[%clk
0:00:09.3]} 51... Bb6 {[%clk 0:00:03.6]} 52. f4 {[%clk 0:00:09.5]} 52... h5
{[%clk 0:00:04.1]} 53. Bd1 {[%clk 0:00:08.9]} 53... h4 {[%clk 0:00:04.1]} 54.
Bf3 {[%clk 0:00:07.9]} 54... h3 {[%clk 0:00:04.5]} 55. Bg1 {[%clk 0:00:05]}
55... Nb5 {[%clk 0:00:05]} 56. Be2 {[%clk 0:00:04.7]} 56... h2 {[%clk
0:00:05.4]} 57. Bxh2 {[%clk 0:00:04.8]} 57... Nxd4 {[%clk 0:00:05.8]} 58. Bd1
{[%clk 0:00:05.5]} 58... Nc6 {[%clk 0:00:04.9]} 59. Kc3 {[%clk 0:00:04.1]} 59...
d4+ {[%clk 0:00:04.3]} 60. Kc4 {[%clk 0:00:04.3]} 60... Ne7 {[%clk 0:00:04.3]}
61. Bb3 {[%clk 0:00:04.6]} 61... Kd7 {[%clk 0:00:03.7]} 62. Kd3 {[%clk
0:00:05.5]} 62... Nc6 {[%clk 0:00:03.3]} 63. Ba4 {[%clk 0:00:06]} 63... Kc7
{[%clk 0:00:02.3]} 64. f5+ {[%clk 0:00:06.1]} 64... Kb7 {[%clk 0:00:02.9]} 65.
Bxc6+ {[%clk 0:00:05.9]} 65... Kxc6 {[%clk 0:00:02.4]} 66. fxg6 {[%clk
0:00:06.8]} 66... Kd7 {[%clk 0:00:02.7]} 67. g7 {[%clk 0:00:07.5]} 67... Ke7
{[%clk 0:00:03.6]} 68. g8=Q {[%clk 0:00:08.4]} 1-0

[Event "*** Titled Tuesday Blitz"]
[Site "Chess.com"]
[Date "2020.04.14"]
[Round "4"]
[White "codapbg94"]
[Black "sergeikim"]
[Result "1-0"]
[WhiteElo "2047"]
[BlackElo "2366"]
[TimeControl "180+1"]
[EndTime "10:41:04 PDT"]
[Termination "codapbg94 won on time"]

1. e4 {[%clk 0:02:53.3]} 1... e5 {[%clk 0:02:59.4]} 2. Bc4 {[%clk 0:02:45.5]}
2... Nf6 {[%clk 0:02:58.3]} 3. d3 {[%clk 0:02:40.5]} 3... Bc5 {[%clk 0:02:57.8]}
4. Nf3 {[%clk 0:02:39.8]} 4... Nc6 {[%clk 0:02:57.3]} 5. O-O {[%clk 0:02:32.7]}
5... d6 {[%clk 0:02:57.2]} 6. h3 {[%clk 0:02:29.8]} 6... a6 {[%clk 0:02:57]} 7.
c3 {[%clk 0:02:27.2]} 7... Ba7 {[%clk 0:02:56.5]} 8. Bb3 {[%clk 0:02:26.2]} 8...
O-O {[%clk 0:02:55.8]} 9. Be3 {[%clk 0:02:22.8]} 9... Nh5 {[%clk 0:02:52.2]} 10.
Bxa7 {[%clk 0:02:04.1]} 10... Rxa7 {[%clk 0:02:51.3]} 11. Nxe5 {[%clk
0:01:41.1]} 11... Nxe5 {[%clk 0:02:48]} 12. Qxh5 {[%clk 0:01:38.7]} 12... Nxd3
{[%clk 0:02:47.6]} 13. Qe2 {[%clk 0:01:39.1]} 13... Nf4 {[%clk 0:02:20]} 14. Qf3
{[%clk 0:01:20]} 14... Qg5 {[%clk 0:02:13.4]} 15. Kh2 {[%clk 0:01:20]} 15... Be6
{[%clk 0:02:02.1]} 16. Na3 {[%clk 0:01:14.9]} 16... Raa8 {[%clk 0:01:56.9]} 17.
Nc4 {[%clk 0:01:11.8]} 17... Rae8 {[%clk 0:01:54.9]} 18. Rae1 {[%clk 0:01:09.3]}
18... Bc8 {[%clk 0:01:49.8]} 19. Ne3 {[%clk 0:01:04.4]} 19... Be6 {[%clk
0:01:34.4]} 20. Ng4 {[%clk 0:00:53.4]} 20... h5 {[%clk 0:01:12.7]} 21. Ne3
{[%clk 0:00:48.2]} 21... b5 {[%clk 0:01:06.8]} 22. Nc2 {[%clk 0:00:39.6]} 22...
h4 {[%clk 0:01:00.8]} 23. Nd4 {[%clk 0:00:38.1]} 23... c5 {[%clk 0:00:55]} 24.
Nxe6 {[%clk 0:00:33.7]} 24... fxe6 {[%clk 0:00:54.2]} 25. Qg4 {[%clk 0:00:33.8]}
25... Qe5 {[%clk 0:00:51.5]} 26. Kg1 {[%clk 0:00:30.3]} 26... Nd3 {[%clk
0:00:44.1]} 27. Re2 {[%clk 0:00:27.8]} 27... Rf4 {[%clk 0:00:41]} 28. Qg6 {[%clk
0:00:24.8]} 28... Re7 {[%clk 0:00:32.2]} 29. Bc2 {[%clk 0:00:16.3]} 29... Nxb2
{[%clk 0:00:23]} 30. g3 {[%clk 0:00:16.3]} 30... Rf6 {[%clk 0:00:21.5]} 31. Qg4
{[%clk 0:00:13.5]} 31... hxg3 {[%clk 0:00:20.2]} 32. f4 {[%clk 0:00:12.6]} 32...
Rg6 {[%clk 0:00:12.6]} 33. fxe5 {[%clk 0:00:08.9]} 33... Rxg4 {[%clk 0:00:11.8]}
34. hxg4 {[%clk 0:00:09.8]} 34... dxe5 {[%clk 0:00:11.7]} 35. Bb3 {[%clk
0:00:08.5]} 35... c4 {[%clk 0:00:10.5]} 36. Rxb2 {[%clk 0:00:08.2]} 36... cxb3
{[%clk 0:00:09.7]} 37. axb3 {[%clk 0:00:09.1]} 37... Rd7 {[%clk 0:00:09.9]} 38.
Kg2 {[%clk 0:00:04]} 38... Rd3 {[%clk 0:00:09.6]} 39. Rc2 {[%clk 0:00:02.4]}
39... Re3 {[%clk 0:00:09]} 40. c4 {[%clk 0:00:02.6]} 40... Rxb3 {[%clk
0:00:04.5]} 41. cxb5 {[%clk 0:00:01.8]} 41... axb5 {[%clk 0:00:03.2]} 42. Rf3
{[%clk 0:00:02.1]} 42... Rb4 {[%clk 0:00:02.5]} 43. Re3 {[%clk 0:00:01.9]} 43...
Rd4 {[%clk 0:00:02]} 44. Kxg3 {[%clk 0:00:02.5]} 44... b4 {[%clk 0:00:01.6]} 45.
Rb3 {[%clk 0:00:02.9]} 45... Kf7 {[%clk 0:00:02.1]} 46. Rcb2 {[%clk 0:00:03.2]}
46... Kg6 {[%clk 0:00:02.6]} 47. Rxb4 {[%clk 0:00:04.1]} 47... Rd3+ {[%clk
0:00:03.2]} 48. Kg2 {[%clk 0:00:03]} 48... Kg5 {[%clk 0:00:02.4]} 49. R2b3
{[%clk 0:00:03.9]} 49... Rd2+ {[%clk 0:00:02.5]} 50. Kg3 {[%clk 0:00:04.8]}
50... Rd1 {[%clk 0:00:02.5]} 51. Rf3 {[%clk 0:00:05.2]} 51... Rg1+ {[%clk
0:00:02.4]} 52. Kf2 {[%clk 0:00:05.8]} 52... Rh1 {[%clk 0:00:01.6]} 53. Rbb3
{[%clk 0:00:06.7]} 53... Kxg4 {[%clk 0:00:01.5]} 54. Rg3+ {[%clk 0:00:07.6]}
54... Kf4 {[%clk 0:00:01.7]} 55. Rxg7 {[%clk 0:00:08]} 55... Kxe4 {[%clk
0:00:02.3]} 56. Rg4+ {[%clk 0:00:08.7]} 56... Kf5 {[%clk 0:00:01.8]} 57. Rf3+
{[%clk 0:00:09.6]} 57... Kxg4 {[%clk 0:00:01.2]} 58. Rg3+ {[%clk 0:00:10.5]} 1-0

[Event "*** Titled Tuesday Blitz"]
[Site "Chess.com"]
[Date "2020.04.14"]
[Round "4"]
[White "Leonid_Starozhilov"]
[Black "K_A_S_T_O_R"]
[Result "1-0"]
[WhiteElo "2665"]
[BlackElo "2828"]
[TimeControl "180+1"]
[EndTime "10:41:07 PDT"]
[Termination "Leonid_Starozhilov won by resignation"]

1. c4 {[%clk 0:03:00.9]} 1... c5 {[%clk 0:02:50.3]} 2. Nf3 {[%clk 0:03:00.7]}
2... Nf6 {[%clk 0:02:49.8]} 3. Nc3 {[%clk 0:03:01.2]} 3... e6 {[%clk 0:02:49.9]}
4. d4 {[%clk 0:03:00.6]} 4... cxd4 {[%clk 0:02:49.6]} 5. Nxd4 {[%clk 0:03:01.5]}
5... a6 {[%clk 0:02:50]} 6. e4 {[%clk 0:03:01.1]} 6... Qc7 {[%clk 0:02:50.3]} 7.
a3 {[%clk 0:02:50.4]} 7... b6 {[%clk 0:02:49.6]} 8. Be3 {[%clk 0:02:40.6]} 8...
Bb7 {[%clk 0:02:49.9]} 9. f3 {[%clk 0:02:38.9]} 9... Be7 {[%clk 0:02:46.2]} 10.
Rc1 {[%clk 0:02:38.3]} 10... O-O {[%clk 0:02:46.6]} 11. Be2 {[%clk 0:02:37.7]}
11... d6 {[%clk 0:02:45.6]} 12. O-O {[%clk 0:02:32.7]} 12... Nbd7 {[%clk
0:02:45.5]} 13. Qd2 {[%clk 0:02:31.9]} 13... Rac8 {[%clk 0:02:44.9]} 14. Rfd1
{[%clk 0:02:24.9]} 14... Qb8 {[%clk 0:02:45]} 15. Qe1 {[%clk 0:02:23.1]} 15...
Bd8 {[%clk 0:02:43.7]} 16. Kh1 {[%clk 0:02:17]} 16... Bc7 {[%clk 0:02:43.5]} 17.
Bg1 {[%clk 0:02:12.2]} 17... Rfe8 {[%clk 0:02:40.2]} 18. Qh4 {[%clk 0:02:03.7]}
18... Ne5 {[%clk 0:02:34.9]} 19. b3 {[%clk 0:02:01.1]} 19... Ng6 {[%clk
0:02:34.2]} 20. Qf2 {[%clk 0:01:49.8]} 20... Qa8 {[%clk 0:02:29.3]} 21. Bf1
{[%clk 0:01:39.7]} 21... d5 {[%clk 0:02:19.5]} 22. cxd5 {[%clk 0:01:38.1]} 22...
exd5 {[%clk 0:02:20.4]} 23. exd5 {[%clk 0:01:36]} 23... Bf4 {[%clk 0:02:09.1]}
24. Rc2 {[%clk 0:01:30]} 24... Be3 {[%clk 0:01:56.6]} 25. Qg3 {[%clk 0:01:29.2]}
25... Bxg1 {[%clk 0:01:36.9]} 26. Kxg1 {[%clk 0:01:30.1]} 26... Nxd5 {[%clk
0:01:36.9]} 27. Nxd5 {[%clk 0:01:25.1]} 27... Bxd5 {[%clk 0:01:36.8]} 28. Rcd2
{[%clk 0:01:22]} 28... h6 {[%clk 0:01:18.7]} 29. h4 {[%clk 0:01:22]} 29... Ne7
{[%clk 0:01:10.5]} 30. b4 {[%clk 0:00:57.1]} 30... b5 {[%clk 0:01:07.6]} 31. Kh2
{[%clk 0:00:38.2]} 31... Bc4 {[%clk 0:01:05.1]} 32. Bd3 {[%clk 0:00:29.7]} 32...
Bxd3 {[%clk 0:01:01.3]} 33. Rxd3 {[%clk 0:00:30.6]} 33... Rc4 {[%clk 0:00:57.1]}
34. Re1 {[%clk 0:00:24.8]} 34... Rxd4 {[%clk 0:00:21.6]} 35. Rxd4 {[%clk
0:00:24.7]} 35... Nf5 {[%clk 0:00:21.8]} 36. Rxe8+ {[%clk 0:00:20.7]} 36... Qxe8
{[%clk 0:00:22.1]} 37. Re4 {[%clk 0:00:18.7]} 37... Qd7 {[%clk 0:00:21.6]} 38.
Qf4 {[%clk 0:00:16.9]} 38... Ne7 {[%clk 0:00:19.8]} 39. Qe5 {[%clk 0:00:15]}
39... Kf8 {[%clk 0:00:10.7]} 40. Rd4 {[%clk 0:00:10.8]} 40... Qc8 {[%clk
0:00:08.2]} 41. Qd6 {[%clk 0:00:09]} 41... Ke8 {[%clk 0:00:07.7]} 42. Re4 {[%clk
0:00:07.6]} 42... Qb7 {[%clk 0:00:08]} 43. Qe5 {[%clk 0:00:06.5]} 43... Kf8
{[%clk 0:00:07]} 44. h5 {[%clk 0:00:06.3]} 44... f6 {[%clk 0:00:07.5]} 45. Qe6
{[%clk 0:00:06.5]} 45... Qc7+ {[%clk 0:00:08]} 46. Kh3 {[%clk 0:00:06.6]} 46...
Qd8 {[%clk 0:00:07.8]} 47. Kh2 {[%clk 0:00:05.5]} 47... Qc7+ {[%clk 0:00:07.5]}
48. Kh1 {[%clk 0:00:05.7]} 48... Qc1+ {[%clk 0:00:07.2]} 49. Re1 {[%clk
0:00:06.1]} 49... Qc7 {[%clk 0:00:07.6]} 50. Rd1 {[%clk 0:00:05.7]} 50... Ke8
{[%clk 0:00:05.1]} 51. Qe4 {[%clk 0:00:03.7]} 51... Qg3 {[%clk 0:00:03.4]} 52.
Re1 {[%clk 0:00:03.8]} 52... Qd6 {[%clk 0:00:02.3]} 53. Qe6 {[%clk 0:00:04]}
53... Qc7 {[%clk 0:00:02.5]} 54. Qg8+ {[%clk 0:00:04.3]} 54... Kd7 {[%clk
0:00:02.9]} 55. Qxg7 {[%clk 0:00:04.2]} 55... Qd6 {[%clk 0:00:03.5]} 56. Qg4+
{[%clk 0:00:03.9]} 56... f5 {[%clk 0:00:03.3]} 57. Qg7 {[%clk 0:00:03.3]} 57...
Kd8 {[%clk 0:00:02.4]} 58. Qxe7+ {[%clk 0:00:03.3]} 58... Qxe7 {[%clk
0:00:02.1]} 59. Rxe7 {[%clk 0:00:04]} 59... Kxe7 {[%clk 0:00:03]} 60. g4 {[%clk
0:00:04]} 60... fxg4 {[%clk 0:00:01.9]} 61. fxg4 {[%clk 0:00:04.9]} 61... Kf6
{[%clk 0:00:02.6]} 62. Kg2 {[%clk 0:00:05.6]} 62... Kg5 {[%clk 0:00:01.7]} 63.
Kg3 {[%clk 0:00:06.2]} 63... Kf6 {[%clk 0:00:02]} 64. Kf4 {[%clk 0:00:06.8]}
64... Ke6 {[%clk 0:00:02.4]} 65. g5 {[%clk 0:00:07.3]} 65... hxg5+ {[%clk
0:00:03.3]} 66. Kxg5 {[%clk 0:00:08.2]} 66... Kf7 {[%clk 0:00:03.8]} 67. Kf5
{[%clk 0:00:07.8]} 67... Kg7 {[%clk 0:00:03.9]} 68. Ke5 {[%clk 0:00:08.4]} 68...
Kh6 {[%clk 0:00:04.8]} 69. Kd5 {[%clk 0:00:09]} 1-0

[Event "*** Titled Tuesday Blitz"]
[Site "Chess.com"]
[Date "2020.04.14"]
[Round "4"]
[White "Chesswizard_2007"]
[Black "pirulillo"]
[Result "1-0"]
[WhiteElo "2607"]
[BlackElo "2187"]
[TimeControl "180+1"]
[EndTime "10:41:09 PDT"]
[Termination "Chesswizard_2007 won by resignation"]

1. d4 {[%clk 0:03:00.9]} 1... Nf6 {[%clk 0:02:58.7]} 2. c4 {[%clk 0:02:57.2]}
2... g6 {[%clk 0:02:57.4]} 3. f3 {[%clk 0:02:55.9]} 3... Bg7 {[%clk 0:02:56]} 4.
e4 {[%clk 0:02:55.8]} 4... d6 {[%clk 0:02:55.8]} 5. Nc3 {[%clk 0:02:54.8]} 5...
O-O {[%clk 0:02:54.9]} 6. Bg5 {[%clk 0:02:55.4]} 6... c5 {[%clk 0:02:30.4]} 7.
d5 {[%clk 0:02:54.5]} 7... a6 {[%clk 0:02:28]} 8. Qd2 {[%clk 0:02:52.8]} 8...
Re8 {[%clk 0:02:24.6]} 9. Nge2 {[%clk 0:02:47.3]} 9... b5 {[%clk 0:02:22.3]} 10.
cxb5 {[%clk 0:02:45.9]} 10... axb5 {[%clk 0:02:23.2]} 11. Nxb5 {[%clk
0:02:45.8]} 11... Ba6 {[%clk 0:02:21.5]} 12. Nec3 {[%clk 0:02:38.4]} 12... Nbd7
{[%clk 0:02:20.1]} 13. Be2 {[%clk 0:02:37.4]} 13... Qa5 {[%clk 0:02:17.7]} 14.
O-O {[%clk 0:02:33.5]} 14... Reb8 {[%clk 0:02:16.4]} 15. a4 {[%clk 0:02:31.2]}
15... Rc8 {[%clk 0:01:58.1]} 16. Nb1 {[%clk 0:02:09.3]} 16... Qxd2 {[%clk
0:01:52.5]} 17. Nxd2 {[%clk 0:02:10.2]} 17... h6 {[%clk 0:01:43.2]} 18. Be3
{[%clk 0:02:05]} 18... Bxb5 {[%clk 0:01:37.6]} 19. Bxb5 {[%clk 0:01:29.9]} 19...
e6 {[%clk 0:01:35.9]} 20. dxe6 {[%clk 0:01:24.2]} 20... fxe6 {[%clk 0:01:35.6]}
21. Nc4 {[%clk 0:00:49.3]} 21... Bf8 {[%clk 0:01:29.1]} 22. Rfd1 {[%clk
0:00:43.1]} 22... d5 {[%clk 0:01:27.9]} 23. e5 {[%clk 0:00:35.9]} 23... dxc4
{[%clk 0:01:16]} 24. exf6 {[%clk 0:00:33.1]} 24... Nxf6 {[%clk 0:01:15.7]} 25.
Bxc4 {[%clk 0:00:33.3]} 25... Nd5 {[%clk 0:01:14.7]} 26. Rxd5 {[%clk 0:00:28.9]}
26... exd5 {[%clk 0:01:12.6]} 27. Bxd5+ {[%clk 0:00:29.8]} 27... Kh7 {[%clk
0:01:11.2]} 28. Bxa8 {[%clk 0:00:29.5]} 28... Rxa8 {[%clk 0:01:12.1]} 29. b3
{[%clk 0:00:24.4]} 29... Rb8 {[%clk 0:01:08]} 30. a5 {[%clk 0:00:11.1]} 30...
Rxb3 {[%clk 0:00:59.8]} 31. a6 {[%clk 0:00:11.3]} 31... Rxe3 {[%clk 0:00:59]}
32. a7 {[%clk 0:00:11.6]} 32... Re8 {[%clk 0:00:57.3]} 33. a8=Q {[%clk
0:00:12.5]} 33... Rxa8 {[%clk 0:00:56.4]} 34. Rxa8 {[%clk 0:00:13.4]} 34... Bg7
{[%clk 0:00:52.1]} 35. Rc8 {[%clk 0:00:12.7]} 35... g5 {[%clk 0:00:51]} 36. Kf1
{[%clk 0:00:13.2]} 36... Bd4 {[%clk 0:00:48.2]} 37. Ke2 {[%clk 0:00:13.6]} 37...
Kg6 {[%clk 0:00:48.2]} 38. Kd3 {[%clk 0:00:12.8]} 38... Bg1 {[%clk 0:00:47.6]}
39. h3 {[%clk 0:00:08.6]} 39... Kf5 {[%clk 0:00:42.8]} 40. Rf8+ {[%clk
0:00:07.5]} 40... Kg6 {[%clk 0:00:42.8]} 41. Ke4 {[%clk 0:00:07.6]} 41... Bf2
{[%clk 0:00:42.5]} 42. g4 {[%clk 0:00:07.2]} 42... Bd4 {[%clk 0:00:41.4]} 43.
Rc8 {[%clk 0:00:08.1]} 43... Bg1 {[%clk 0:00:40.6]} 44. Rc6+ {[%clk 0:00:09]}
44... Kg7 {[%clk 0:00:38.3]} 45. Kf5 {[%clk 0:00:09.9]} 45... Bd4 {[%clk
0:00:37.2]} 46. Rc7+ {[%clk 0:00:09.8]} 46... Kf8 {[%clk 0:00:36.8]} 47. Kg6
{[%clk 0:00:10.4]} 47... Ke8 {[%clk 0:00:34.6]} 48. Kxh6 {[%clk 0:00:10.5]}
48... Kd8 {[%clk 0:00:34.9]} 49. Rb7 {[%clk 0:00:07.8]} 49... c4 {[%clk
0:00:34.1]} 50. Rb4 {[%clk 0:00:06.8]} 50... Ke7 {[%clk 0:00:28.4]} 51. Rxc4
{[%clk 0:00:06.8]} 51... Bf2 {[%clk 0:00:27]} 52. Kg6 {[%clk 0:00:07.2]} 52...
Kf8 {[%clk 0:00:25.3]} 53. Re4 {[%clk 0:00:08.1]} 53... Bh4 {[%clk 0:00:22]} 54.
Kf5 {[%clk 0:00:09]} 54... Kf7 {[%clk 0:00:21.2]} 55. Ra4 {[%clk 0:00:09.9]}
55... Ke7 {[%clk 0:00:20.8]} 56. Ra6 {[%clk 0:00:10.8]} 56... Kf7 {[%clk
0:00:20.4]} 57. Ra8 {[%clk 0:00:11.7]} 57... Ke7 {[%clk 0:00:20.4]} 58. Ra2
{[%clk 0:00:12.6]} 58... Kd6 {[%clk 0:00:20.4]} 59. Rc2 {[%clk 0:00:13.5]} 59...
Ke7 {[%clk 0:00:20.5]} 60. Re2+ {[%clk 0:00:14.4]} 60... Kf7 {[%clk 0:00:20.7]}
61. Re6 {[%clk 0:00:15.3]} 61... Kg7 {[%clk 0:00:20.3]} 62. Rg6+ {[%clk
0:00:16.2]} 62... Kh7 {[%clk 0:00:20.3]} 63. Rxg5 {[%clk 0:00:17.1]} 63... Bg3
{[%clk 0:00:17.6]} 64. Rh5+ {[%clk 0:00:17]} 64... Kg7 {[%clk 0:00:17.3]} 65.
Rg5+ {[%clk 0:00:17.9]} 65... Kh7 {[%clk 0:00:17.1]} 66. Rg6 {[%clk 0:00:18.8]}
66... Bc7 {[%clk 0:00:15.9]} 67. Ra6 {[%clk 0:00:19.7]} 67... Bg3 {[%clk
0:00:14.4]} 68. g5 {[%clk 0:00:20.6]} 68... Kg8 {[%clk 0:00:14.4]} 69. Kg6
{[%clk 0:00:20]} 69... Kf8 {[%clk 0:00:12.6]} 70. Ra8+ {[%clk 0:00:20.4]} 70...
Ke7 {[%clk 0:00:12.4]} 71. Kh7 {[%clk 0:00:21.3]} 71... Bf4 {[%clk 0:00:12.4]}
72. g6 {[%clk 0:00:22.2]} 72... Be5 {[%clk 0:00:12.6]} 73. g7 {[%clk 0:00:21.8]}
73... Bxg7 {[%clk 0:00:12.8]} 74. Kxg7 {[%clk 0:00:22.7]} 74... Ke6 {[%clk
0:00:13.7]} 75. h4 {[%clk 0:00:23.6]} 75... Kf5 {[%clk 0:00:14.4]} 76. h5 {[%clk
0:00:24.5]} 76... Kf4 {[%clk 0:00:14.7]} 77. h6 {[%clk 0:00:25.4]} 77... Kxf3
{[%clk 0:00:15.6]} 78. h7 {[%clk 0:00:26.3]} 78... Kg4 {[%clk 0:00:15.3]} 79.
h8=Q {[%clk 0:00:26.8]} 1-0

[Event "*** Titled Tuesday Blitz"]
[Site "Chess.com"]
[Date "2020.04.14"]
[Round "4"]
[White "Buffy7"]
[Black "rozabaku"]
[Result "1-0"]
[WhiteElo "2649"]
[BlackElo "2440"]
[TimeControl "180+1"]
[EndTime "10:41:10 PDT"]
[Termination "Buffy7 won by resignation"]

1. d4 {[%clk 0:03:00.5]} 1... Nf6 {[%clk 0:03:00.1]} 2. c4 {[%clk 0:02:59.6]}
2... g6 {[%clk 0:03:00.3]} 3. Nc3 {[%clk 0:02:55.9]} 3... d5 {[%clk 0:03:00.6]}
4. cxd5 {[%clk 0:02:56]} 4... Nxd5 {[%clk 0:03:01.5]} 5. e4 {[%clk 0:02:56.4]}
5... Nxc3 {[%clk 0:03:01.9]} 6. bxc3 {[%clk 0:02:57.3]} 6... Bg7 {[%clk
0:03:02.8]} 7. Nf3 {[%clk 0:02:57.6]} 7... c5 {[%clk 0:03:03.3]} 8. Be3 {[%clk
0:02:57.8]} 8... cxd4 {[%clk 0:03:03.5]} 9. cxd4 {[%clk 0:02:57.9]} 9... Nc6
{[%clk 0:03:02.9]} 10. Qd2 {[%clk 0:02:45.4]} 10... Bg4 {[%clk 0:03:00.8]} 11.
Rd1 {[%clk 0:02:40.2]} 11... Bxf3 {[%clk 0:02:59.2]} 12. gxf3 {[%clk 0:02:40.1]}
12... O-O {[%clk 0:02:59.4]} 13. f4 {[%clk 0:02:20.6]} 13... Qa5 {[%clk
0:02:54.6]} 14. Qxa5 {[%clk 0:02:00.6]} 14... Nxa5 {[%clk 0:02:55.5]} 15. Bd3
{[%clk 0:01:49.8]} 15... Rac8 {[%clk 0:02:53.5]} 16. Ke2 {[%clk 0:01:46.7]}
16... a6 {[%clk 0:02:46.5]} 17. Rc1 {[%clk 0:01:43.1]} 17... b5 {[%clk
0:02:46.1]} 18. e5 {[%clk 0:01:33.8]} 18... e6 {[%clk 0:02:40.7]} 19. a4 {[%clk
0:01:19.4]} 19... Nc4 {[%clk 0:02:34.6]} 20. axb5 {[%clk 0:01:16.9]} 20... axb5
{[%clk 0:02:33]} 21. Rb1 {[%clk 0:01:17.5]} 21... Rb8 {[%clk 0:02:20.4]} 22.
Rhc1 {[%clk 0:01:07.6]} 22... Na3 {[%clk 0:02:02.3]} 23. Rb3 {[%clk 0:00:50]}
23... b4 {[%clk 0:02:01.6]} 24. Bd2 {[%clk 0:00:50.1]} 24... Nb5 {[%clk
0:01:44.3]} 25. Rxb4 {[%clk 0:00:49.9]} 25... Na7 {[%clk 0:01:29.3]} 26. Rc7
{[%clk 0:00:49]} 26... Rxb4 {[%clk 0:00:59]} 27. Bxb4 {[%clk 0:00:49.9]} 27...
Rb8 {[%clk 0:00:59.5]} 28. Bc5 {[%clk 0:00:48.6]} 28... Nc8 {[%clk 0:00:55.2]}
29. Ba6 {[%clk 0:00:26.7]} 29... Nb6 {[%clk 0:00:52.5]} 30. Bb7 {[%clk
0:00:26.1]} 30... Na4 {[%clk 0:00:29.3]} 31. Bd6 {[%clk 0:00:24.7]} 31... Bf8
{[%clk 0:00:27.8]} 32. Bc6 {[%clk 0:00:17.4]} 32... Nb2 {[%clk 0:00:23.1]} 33.
d5 {[%clk 0:00:12]} 33... Nc4 {[%clk 0:00:16.8]} 34. Bxf8 {[%clk 0:00:11.6]}
34... Rxf8 {[%clk 0:00:17.7]} 35. d6 {[%clk 0:00:10.9]} 35... Rd8 {[%clk
0:00:15.3]} 36. Be4 {[%clk 0:00:10.5]} 36... Nb6 {[%clk 0:00:14.5]} 37. Rb7
{[%clk 0:00:10.1]} 37... Nd7 {[%clk 0:00:14]} 38. Ke3 {[%clk 0:00:09.6]} 38...
h6 {[%clk 0:00:13.3]} 39. Kd4 {[%clk 0:00:09.3]} 39... Kg7 {[%clk 0:00:13.3]}
40. Bc6 {[%clk 0:00:09.4]} 40... Nf8 {[%clk 0:00:12.7]} 41. Kc5 {[%clk
0:00:08.6]} 41... g5 {[%clk 0:00:12.7]} 42. d7 {[%clk 0:00:08.6]} 42... gxf4
{[%clk 0:00:12]} 43. Kd6 {[%clk 0:00:09.1]} 43... f6 {[%clk 0:00:11.6]} 44. Ke7
{[%clk 0:00:09]} 44... Rxd7+ {[%clk 0:00:09.6]} 45. Bxd7 {[%clk 0:00:09.2]}
45... fxe5 {[%clk 0:00:09.6]} 46. Bxe6 {[%clk 0:00:09.5]} 46... e4 {[%clk
0:00:09.4]} 47. Kd6+ {[%clk 0:00:09.7]} 47... Kf6 {[%clk 0:00:09.3]} 48. Rf7+
{[%clk 0:00:09]} 48... Kg5 {[%clk 0:00:09.2]} 49. Rxf8 {[%clk 0:00:09.7]} 49...
e3 {[%clk 0:00:09.7]} 50. fxe3 {[%clk 0:00:09.5]} 50... fxe3 {[%clk 0:00:10.6]}
51. Rf3 {[%clk 0:00:10]} 51... e2 {[%clk 0:00:10.5]} 52. Re3 {[%clk 0:00:10.4]}
52... h5 {[%clk 0:00:10.6]} 53. Rxe2 {[%clk 0:00:10.8]} 53... Kf4 {[%clk
0:00:11.5]} 54. h3 {[%clk 0:00:10.8]} 54... Kg3 {[%clk 0:00:11.7]} 55. Ra2
{[%clk 0:00:11.5]} 55... Kf3 {[%clk 0:00:11.5]} 56. Ra4 {[%clk 0:00:12.2]} 56...
Kg3 {[%clk 0:00:11.2]} 57. Ke7 {[%clk 0:00:13.1]} 57... Kf3 {[%clk 0:00:11.4]}
58. Kf6 {[%clk 0:00:14]} 58... Kg3 {[%clk 0:00:12.3]} 59. Kg5 {[%clk 0:00:13.5]}
59... h4 {[%clk 0:00:13.2]} 60. Ra3+ {[%clk 0:00:13.1]} 60... Kh2 {[%clk
0:00:14.1]} 61. Kxh4 {[%clk 0:00:12.8]} 61... Kg2 {[%clk 0:00:15]} 62. Kg4
{[%clk 0:00:12.9]} 62... Kf2 {[%clk 0:00:15.9]} 63. h4 {[%clk 0:00:13.2]} 1-0